Workbook

Sheet Disclaimer

Sheet Instructions
A1: Power Budget Instructions
A40: Press the Start button to begin using the Power Budget Tool

Sheet Summary
A1: Power Budget | E1: 4 nodes -> 3+0 3 nodes -> 2+1 2 nodes -> 2+1 1 node -> 1+2 | H1: Product Code Summary
A2: System Totals | B2: 12V Main (Amps) | C2: 12V Stby (Amps) | D2: Total System Watts | E2: Deshabilitar input voltage 115V celda B19 | H2: H2216KPKR2 | I2: H2216KPFKR2 | J2: H2216TPKR2 | K2: H2216TPFKR2
A3: =CONCATENATE("Chassis/Power Supply: ",INDEX(Chassis_Definition!A3:A7,'Configure System'!B4)) -> Chassis/Power Supply: (Select Chassis) | B3: ='Configure System'!E6 -> 0 | C3: ='Configure System'!F6 -> 0 | D3: ='Configure System'!G6 -> 0
A4: =CONCATENATE("Compute Module 1: ",INDEX(Compute_Module!A$2:A$16,'Configure Module 1'!B4)) -> Compute Module 1: (Select Compute Node) | B4: ='Configure Module 1'!$K$13 -> 0 | C4: ='Configure Module 1'!L13 -> 0 | D4: ='Configure Module 1'!M13 -> 0 | E4: Nodo 56c -> 900W | H4: H2224KPKR2(1600W) | J4: H2224TPKR2(1600W)
A5: =CONCATENATE("Compute Module 2: ",INDEX(Compute_Module!A$2:A$16,'Configure Module 2'!B4)) -> Compute Module 2: (Select Compute Node) | B5: ='Configure Module 2'!$K$13 -> 0 | C5: ='Configure Module 2'!L13 -> 0 | D5: ='Configure Module 2'!M13 -> 0 | E5: chassis -> 180 | H5: H2224KPKR2(2200W) | J5: H2224TPKR2(2200W)
A6: =CONCATENATE("Compute Module 3: ",INDEX(Compute_Module!A$2:A$16,'Configure Module 3'!B4)) -> Compute Module 3: (Select Compute Node) | B6: ='Configure Module 3'!$K$13 -> 0 | C6: ='Configure Module 3'!L13 -> 0 | D6: ='Configure Module 3'!M13 -> 0
A7: =CONCATENATE("Compute Module 4: ",INDEX(Compute_Module!A$2:A$16,'Configure Module 4'!B4)) -> Compute Module 4: (Select Compute Node) | B7: ='Configure Module 4'!$K$13 -> 0 | C7: ='Configure Module 4'!L13 -> 0 | D7: ='Configure Module 4'!M13 -> 0 | I7: PSU Limitation
H8: H2312KR/2x1600W CRPS/3x4056 dual rotor fan | I8: =IF(B19=1,1600,1000) -> 1600 | J8: =IF(B19=1,2160,1360) -> 2160
A9: System Totals: | B9: =IFERROR(SUM(B3:B8),0) -> 0 | C9: =SUM(C3:C8) -> 0 | D9: =SUM(D3:D8) -> 0 | H9: H2216KR/2x1600W CRPS/3x4056 dual rotor fan | I9: =IF(B19=1,1600,1000) -> 1600 | J9: =IF(B19=1,2160,1360) -> 2160
A10: CLST Allowance | B10: ='Configure Module 1'!K14+'Configure Module 2'!#REF!+'Configure Module 3'!#REF!+'Configure Module 4'!#REF! ->  | C10: ='Configure Module 1'!L14+'Configure Module 2'!#REF!+'Configure Module 3'!#REF!+'Configure Module 4'!#REF! ->  | D10: =B10*12 ->  | H10: H2224KPKR2(1600W) CRPS/3x4056 dual rotor fan
A11: System Power during CLST | B11: =B9-B10 ->  | C11: =C9-C10 ->  | D11: =D9-D10 ->  | H11: H2224KPKR2(2200W) CRPS/3x4056 dual rotor fan
A12: =INDEX(H19:H20,B19)&"VAC"&" PSU DC Output Limits (3+0 Mode)" -> 240VAC PSU DC Output Limits (3+0 Mode) | B12: =INDEX(Chassis_Definition!D3:E5,'Configure System'!B4,B19)*3 -> 0 | C12: =INDEX(Chassis_Definition!F3:F8,'Configure System'!B4)*3 -> 0 | D12: =PS1_12*12 -> 0 | E12: <-- These limits may change based on inlet voltage | H12: PSU | I12: Rating | J12: OC CLST
A13: =INDEX(H19:H20,B19)&"VAC"&" PSU DC Output Limits (2+1 Mode)" -> 240VAC PSU DC Output Limits (2+1 Mode) | B13: =INDEX(Chassis_Definition!D3:E5,'Configure System'!B4,B19)*2 -> 0 | C13: =INDEX(Chassis_Definition!F3:F8,'Configure System'!B4)*2 -> 0 | D13: =B13*12 -> 0 | H13: =INDEX(I8:J11,'Configure System'!B4,1) -> 1600 | I13: =INDEX(I8:J11,'Configure System'!B4,1) -> 1600 | J13: =INDEX(I8:J11,'Configure System'!B4,2) -> 2160
A14: Margins to Limit (3+0 Mode) | B14: =PS1_12-B9 -> 0 | C14: =PS1_5VSB-C9 -> 0 | D14: =ps1CombLim-PowerTotal -> 0 | E14: =IF(D14<0,"<-- Limits Exceeded!","<--System Margins") -> <--System Margins | I14: =I13-PowerTotal -> 1600 | J14: =J13-PowerTotal -> 2160
A15: Margins to Limit (2+1 Mode) | B15: =B13-B9 -> 0 | C15: =C13-C9 -> 0 | D15: =D13-PowerTotal -> 0 | I15: Unconstrained Redundant Mode: No system throttle. All 4 nodes work normally. | J15: Optimal Redundant Mode: 1. With BIOS setting “server management - shutdown policy” “disable”, all nodes in the system may be throttled and have lower performance. 2. With BIOS “server management--shutdown policy” “enable”, Node3 and 4 will shutdown while Node1 and 2 keep running without throttling. Node 1 and Node 2 have no performance lose. | K15: Non Redundant Mode: All nodes in the system may shutdown due to OCP.
A16: Negative margins show configuration exceeds a specified limit.
A18: AC inlet power estimate (below)
A19: Input Voltage: | B19: 1 | C19: (Volts) | H19: 240 | I19: =INDEX(Chassis_Definition!M4:N8,'Configure System'!B4-1,Summary!B19) -> 
A20: Estimated Inlet Power: | B20: =IF(D14>0,PowerTotal/INDEX(Chassis_Definition!M3:M8,'Configure System'!B4,Summary!B19),"NA") -> NA | C20: (Watts) | H20: 115
A21: Estimated Inlet Current: | B21: =IF(B20="NA","NA",B20/ABS(INDEX(H19:H22,B19))) -> NA | C21: (Amps)
A22: Estimated Thermal Dissipation: | B22: =IF(B20="NA","NA",B20*3.41) -> NA | C22: (BTU/Hr)
A23: Note: Estimates are most accurate at max loading.
L24: PSU | M24: System Loading | N24: Working Mode @1 PSU failure | O24: Description
M25: <Rating | N25: Unconstrained Redundant Mode | O25: No system throttle. All 4 nodes work normally.
A26: If your desired configuration exceeds the power supply limits, two power supplies are required. The two power supplies will operate in a current sharing mode | M26: Rating< <OC CLST | N26: Optimal Redundant Mode | O26: 1. With BIOS setting “server management - shutdown policy” “disable”, all nodes in the system may be throttled and have lower performance. 2. With BIOS “server management--shutdown policy” “enable”, Node3 and 4 will shutdown while Node1 and 2 keep running without throttling. Node 1 and Node 2 have no performance lose.
A27: to deliver the additional power needed for your configuration. Furthermore, the two power supplies may need to be sourced from separate AC circuits in order to not | M27: >OC CLST | N27: Non Redundant Mode | O27: All nodes in the system may shutdown due to OCP.
A28: exceed maximum AC outlet current. Exceeding maximum AC outlet current may cause a circuit breaker to trip.
A30: Revision: | B30: =Revision!B1 -> 1 | C30: =Revision!A1 -> 2019-10-29

Sheet Configure System
A1: Power Budget | B1: CONFIGURE SYSTEM
B2: Description | E2: 12V Main (Amps) | F2: 12V Stby (Amps) | G2: Power (watts)
M3: =B3 -> 0
A4: Define Chassis: | B4: 1 | E4: =INDEX(Chassis_Definition!L3:L5,B4) -> 0 | F4: =INDEX(Chassis_Definition!F3:F5,B4) -> 0 | G4: =(E4*12)+(F4*12) -> 0 | M4: =B4 -> 1
B6: SubTotals: | E6: =SUM(E4:E4) -> 0 | F6: =SUM(F4:F4) -> 0 | G6: =SUM(G4:G4) -> 0
B7: SubTotal Chassis Power (Watts): | E7: =E6*12 -> 0 | F7: =F6*12 -> 0 | G7: =SUM(E7:F7) -> 0

Sheet Configure Module 1
A1: Power Budget
A2: =CONCATENATE("Compute Module 1: ",INDEX(Compute_Module!A$2:A$16,$B4)," Configuration") -> Compute Module 1: (Select Compute Node) Configuration | O2: CPU VRM Efficiency | P2: 3.3v VRM Efficiency | Q2: 5v VRM Efficiency
B3: Description | D3: +3.3V (amps) | E3: +5V (amps) | F3: +12V (amps) | G3: 12V CPU1 (amps) | H3: 12V CPU2 (amps) | I3: 5V stby (amps) | J3: Max 3.3v/5v (watts) | K3: 12V MAIN (Amps) | L3: 12V Stby (Amps) | M3: Power (Watts) | O3: =INDEX(Compute_Module!H$2:H$11,$B4) -> 1 | P3: =INDEX(Compute_Module!I$2:I$11,$B4) -> 1 | Q3: =INDEX(Compute_Module!J$2:J$11,$B4) -> 1
A4: Compute Node: | B4: 1 | D4: =INDEX(Compute_Module!B$2:B$16,$B4) *1 -> 0 | E4: =INDEX(Compute_Module!C$2:C$16,$B4) *1 -> 0 | F4: =INDEX(Compute_Module!D2:D14,'Configure Module 1'!B$4) -> 0 | I4: =INDEX(Compute_Module!F$2:F$16,$B4) *1 -> 0 | K4: =INDEX(Compute_Module!D2:D14,'Configure Module 1'!B$4) -> 0 | L4: =INDEX(Compute_Module!F$2:F$16,$B4) *1 -> 0 | M4: =INDEX(Compute_Module!G$2:G$16,$B4) *1 -> 0 | T4: 1 | U4: =IF(AND('Configure System'!B4=2,'Configure Module 1'!B4>=7),"---> Chassis and node type mismatch","---> Chassis and node type match") -> ---> Chassis and node type match
A5: SSD 1: | B5: 1 | F5: =INDEX(SSD!$D$2:$D$7,'Configure Module 1'!B$5) -> 0 | K5: =INDEX(SSD!$D$2:$D$7,'Configure Module 1'!B$5) -> 0 | L5: =I5/0.87 -> 0 | M5: =K5*12 -> 0 | N5: * Only allowed in 2U node selection | T5: 1
A6: SSD 2: | B6: 1 | F6: =INDEX(SSD!$D$2:$D$7,'Configure Module 1'!B$6) -> 0 | K6: =INDEX(SSD!$D$2:$D$7,'Configure Module 1'!B$6) -> 0 | L6: =I6/0.87 -> 0 | M6: =K6*12 -> 0 | N6: * Only allowed in 2U node selection | T6: 1 | V6: * Arreglar botón Define hard drive types
A7: CPU 1 Memory: | B7: 1 | C7: 1 | G7: =(C7-1)*INDEX(Memory!B$4:B$11,$B7)/12/0.9 -> 0 | K7: =INDEX(Memory!B$4:B$11,$B7)*INDEX(Memory!$A$24:$A$27,$C$7)/12 -> 0 | L7: =I7/0.87/12 -> 0 | M7: =INDEX(Memory!B$4:B$11,$B7)*INDEX(Memory!$A$24:$A$27,$C$7) -> 0 | T7: 4 | V7: * mandar a llamar valores de las memorias
A8: CPU 2 Memory: | B8: 1 | C8: 1 | H8: =(C8-1)*INDEX(Memory!B$4:B$11,$B8)/12/0.9 -> 0 | K8: =INDEX(Memory!B$4:B$11,$B8)*INDEX(Memory!$A$24:$A$27,$C$8)/12 -> 0 | L8: =I8/0.87/12 -> 0 | M8: =INDEX(Memory!B$4:B$11,$B8)*INDEX(Memory!$A$24:$A$27,$C$8) -> 0 | V8: * mandar a llamar valores de las memorias
A9: Riser 1: | B9: 1 | D9: =INDEX(PCIe!B$2:B$12,$B9) -> 0 | E9: =INDEX(PCIe!C$2:C$12,$B9) -> 0 | F9: =INDEX(PCIe!D$2:D$12,$B9)+((D9*3.3)/12)/$P$3+((E9*5)/12)/$Q$3 -> 0 | K9: =INDEX(PCIe!D$2:D$12,$B9)+((D9*3.3)/12)/$P$3+((E9*5)/12)/$Q$3 -> 0 | L9: =I9/0.87/12 -> 0 | M9: =F9*12 -> 0
A10: Riser 2: | B10: 1 | D10: =INDEX(PCIe!B$14:B$20,$B10) -> 0 | E10: =INDEX(PCIe!C$14:C$20,$B10) -> 0 | F10: =INDEX(PCIe!D$14:D$19,$B10)+((D10*3.3)/12)/$P$3+((E10*5)/12)/$Q$3 -> 0 | K10: =INDEX(PCIe!D$14:D$19,$B10)+((D10*3.3)/12)/$P$3+((E10*5)/12)/$Q$3 -> 0 | L10: =I10/0.87/12 -> 0 | M10: =F10*12 -> 0
A11: M.2: | B11: 1 | C11: 1 | F11: =(C11-1)*INDEX(SSD!D$11:D$17,$B11) -> 0 | K11: =(C11-1)*INDEX(SSD!D$11:D$17,$B11) -> 0 | L11: =I11/0.87/12 -> 0 | M11: =F11*12 -> 0 | N11: * Up to 1 per riser
A12: Peripheral: | B12: 1
B13: Compute Module 1 SubTotals: | F13: =SUM(F5:F10) -> 0 | G13: =SUM(G5:G10) -> 0 | H13: =SUM(H7:H10) -> 0 | I13: =SUM(I5:I10) -> 0 | K13: =SUM(K4:K11) -> 0 | L13: =SUM(L5:L10) -> 0 | M13: =SUM(M4:M11) -> 0 | O13: CPU1 | P13: CPU2 | Q13: DIMM1 | R13: DIMM2
B14: CLST Allowance: | K14: =M14/12 ->  | L14: 0 | M14: =SUM(O14:R14) ->  | O14: =IF(B5>1,INDEX(Processors!G2:G54,$B5)*(C6-1),0) -> 0 | P14: =IF(#REF!>1,INDEX(Processors!G2:G54,#REF!)*(#REF!-1),0) ->  | Q14: =IF(C7>1,INDEX(Memory!Q4:T9,'Configure Module 1'!B7,$C7-1),0) -> 0 | R14: =IF(C8>1,INDEX(Memory!Q4:T9,'Configure Module 1'!B8,$C8-1),0) -> 0

Sheet Configure Module 2
A1: Power Budget
A2: =CONCATENATE("Compute Module 2: ",INDEX(Compute_Module!A$2:A$16,$B4)," Configuration") -> Compute Module 2: (Select Compute Node) Configuration | O2: CPU VRM Efficiency | P2: 3.3v VRM Efficiency | Q2: 5v VRM Efficiency
B3: Description | D3: +3.3V (amps) | E3: +5V (amps) | F3: +12V (amps) | G3: 12V CPU1 (amps) | H3: 12V CPU2 (amps) | I3: 5V stby (amps) | J3: Max 3.3v/5v (watts) | K3: 12V MAIN (Amps) | L3: 12V Stby (Amps) | M3: Power (Watts) | O3: =INDEX(Compute_Module!H$2:H$11,$B4) -> 1 | P3: =INDEX(Compute_Module!I$2:I$11,$B4) -> 1 | Q3: =INDEX(Compute_Module!J$2:J$11,$B4) -> 1
A4: Compute Node: | B4: 1 | D4: =INDEX(Compute_Module!B$2:B$16,$B4) *1 -> 0 | E4: =INDEX(Compute_Module!C$2:C$16,$B4) *1 -> 0 | F4: =INDEX(Compute_Module!D2:D14,'Configure Module 2'!B$4) -> 0 | I4: =INDEX(Compute_Module!F$2:F$16,$B4) *1 -> 0 | K4: =INDEX(Compute_Module!D2:D14,'Configure Module 2'!B$4) -> 0 | L4: =INDEX(Compute_Module!F$2:F$16,$B4) *1 -> 0 | M4: =INDEX(Compute_Module!G$2:G$16,$B4) *1 -> 0 | T4: 1 | U4: =IF(AND('Configure System'!B4=2,'Configure Module 1'!B4>=7),"---> Chassis and node type mismatch","---> Chassis and node type match") -> ---> Chassis and node type match
A5: SSD 1: | B5: 1 | F5: =INDEX(SSD!$D$2:$D$7,'Configure Module 2'!B$5) -> 0 | K5: =INDEX(SSD!$D$2:$D$7,'Configure Module 2'!B$5) -> 0 | L5: =I5/0.87 -> 0 | M5: =K5*12 -> 0 | N5: * Only allowed in 2U node selection | T5: 1
A6: SSD 2: | B6: 1 | F6: =INDEX(SSD!$D$2:$D$7,'Configure Module 2'!B$6) -> 0 | K6: =INDEX(SSD!$D$2:$D$7,'Configure Module 2'!B$6) -> 0 | L6: =I6/0.87 -> 0 | M6: =K6*12 -> 0 | N6: * Only allowed in 2U node selection | T6: 1 | V6: * Arreglar botón Define hard drive types
A7: CPU 1 Memory: | B7: 1 | C7: 1 | G7: =(C7-1)*INDEX(Memory!B$4:B$11,$B7)/12/0.9 -> 0 | K7: =INDEX(Memory!B$4:B$11,$B7)*INDEX(Memory!$A$24:$A$27,$C$7)/12 -> 0 | L7: =I7/0.87/12 -> 0 | M7: =INDEX(Memory!B$4:B$11,$B7)*INDEX(Memory!$A$24:$A$27,$C$7) -> 0 | T7: 4 | V7: * mandar a llamar valores de las memorias
A8: CPU 2 Memory: | B8: 1 | C8: 1 | H8: =(C8-1)*INDEX(Memory!B$4:B$11,$B8)/12/0.9 -> 0 | K8: =INDEX(Memory!B$4:B$11,$B8)*INDEX(Memory!$A$24:$A$27,$C$8)/12 -> 0 | L8: =I8/0.87/12 -> 0 | M8: =INDEX(Memory!B$4:B$11,$B8)*INDEX(Memory!$A$24:$A$27,$C$8) -> 0 | V8: * mandar a llamar valores de las memorias
A9: Riser 1: | B9: 1 | D9: =INDEX(PCIe!B$2:B$12,$B9) -> 0 | E9: =INDEX(PCIe!C$2:C$12,$B9) -> 0 | F9: =INDEX(PCIe!D$2:D$12,$B9)+((D9*3.3)/12)/$P$3+((E9*5)/12)/$Q$3 -> 0 | K9: =INDEX(PCIe!D$2:D$12,$B9)+((D9*3.3)/12)/$P$3+((E9*5)/12)/$Q$3 -> 0 | L9: =I9/0.87/12 -> 0 | M9: =F9*12 -> 0
A10: Riser 2: | B10: 1 | D10: =INDEX(PCIe!B$14:B$20,$B10) -> 0 | E10: =INDEX(PCIe!C$14:C$20,$B10) -> 0 | F10: =INDEX(PCIe!D$14:D$19,$B10)+((D10*3.3)/12)/$P$3+((E10*5)/12)/$Q$3 -> 0 | K10: =INDEX(PCIe!D$14:D$19,$B10)+((D10*3.3)/12)/$P$3+((E10*5)/12)/$Q$3 -> 0 | L10: =I10/0.87/12 -> 0 | M10: =F10*12 -> 0
A11: M.2: | B11: 1 | C11: 1 | F11: =(C11-1)*INDEX(SSD!D$11:D$17,$B11) -> 0 | K11: =(C11-1)*INDEX(SSD!D$11:D$17,$B11) -> 0 | L11: =I11/0.87/12 -> 0 | M11: =F11*12 -> 0 | N11: * Up to 1 per riser
A12: Peripheral: | B12: 1
B13: Compute Module 1 SubTotals: | F13: =SUM(F5:F10) -> 0 | G13: =SUM(G5:G10) -> 0 | H13: =SUM(H7:H10) -> 0 | I13: =SUM(I5:I10) -> 0 | K13: =SUM(K4:K11) -> 0 | L13: =SUM(L5:L10) -> 0 | M13: =SUM(M4:M11) -> 0 | O13: CPU1 | P13: CPU2 | Q13: DIMM1 | R13: DIMM2
B14: CLST Allowance: | K14: =M14/12 ->  | L14: 0 | M14: =SUM(O14:R14) ->  | O14: =IF(B5>1,INDEX(Processors!G2:G54,$B5)*(C6-1),0) -> 0 | P14: =IF(#REF!>1,INDEX(Processors!G2:G54,#REF!)*(#REF!-1),0) ->  | Q14: =IF(C7>1,INDEX(Memory!Q4:T9,'Configure Module 1'!B7,$C7-1),0) -> 0 | R14: =IF(C8>1,INDEX(Memory!Q4:T9,'Configure Module 1'!B8,$C8-1),0) -> 0
H17: =0.2*1 -> 0.2

Sheet Configure Module 3
A1: Power Budget
A2: =CONCATENATE("Compute Module 3: ",INDEX(Compute_Module!A$2:A$16,$B4)," Configuration") -> Compute Module 3: (Select Compute Node) Configuration | O2: CPU VRM Efficiency | P2: 3.3v VRM Efficiency | Q2: 5v VRM Efficiency
B3: Description | D3: +3.3V (amps) | E3: +5V (amps) | F3: +12V (amps) | G3: 12V CPU1 (amps) | H3: 12V CPU2 (amps) | I3: 5V stby (amps) | J3: Max 3.3v/5v (watts) | K3: 12V MAIN (Amps) | L3: 12V Stby (Amps) | M3: Power (Watts) | O3: =INDEX(Compute_Module!H$2:H$11,$B4) -> 1 | P3: =INDEX(Compute_Module!I$2:I$11,$B4) -> 1 | Q3: =INDEX(Compute_Module!J$2:J$11,$B4) -> 1
A4: Compute Node: | B4: 1 | D4: =INDEX(Compute_Module!B$2:B$16,$B4) *1 -> 0 | E4: =INDEX(Compute_Module!C$2:C$16,$B4) *1 -> 0 | F4: =INDEX(Compute_Module!D2:D14,'Configure Module 3'!B$4) -> 0 | I4: =INDEX(Compute_Module!F$2:F$16,$B4) *1 -> 0 | K4: =INDEX(Compute_Module!D2:D14,'Configure Module 3'!B$4) -> 0 | L4: =INDEX(Compute_Module!F$2:F$16,$B4) *1 -> 0 | M4: =INDEX(Compute_Module!G$2:G$16,$B4) *1 -> 0 | T4: 1
A5: SSD 1: | B5: 1 | F5: =INDEX(SSD!$D$2:$D$7,'Configure Module 3'!B$5) -> 0 | K5: =INDEX(SSD!$D$2:$D$7,'Configure Module 3'!B$5) -> 0 | L5: =I5/0.87 -> 0 | M5: =K5*12 -> 0 | N5: * Only allowed in 2U node selection | T5: 1
A6: SSD 2: | B6: 1 | F6: =INDEX(SSD!$D$2:$D$7,'Configure Module 3'!B$6) -> 0 | K6: =INDEX(SSD!$D$2:$D$7,'Configure Module 3'!B$6) -> 0 | L6: =I6/0.87 -> 0 | M6: =K6*12 -> 0 | N6: * Only allowed in 2U node selection | T6: 1
A7: CPU 1 Memory: | B7: 1 | C7: 1 | G7: =(C7-1)*INDEX(Memory!B$4:B$11,$B7)/12/0.9 -> 0 | K7: =INDEX(Memory!B$4:B$11,$B7)*INDEX(Memory!$A$24:$A$27,$C$7)/12 -> 0 | L7: =I7/0.87/12 -> 0 | M7: =INDEX(Memory!B$4:B$11,$B7)*INDEX(Memory!$A$24:$A$27,$C$7) -> 0 | T7: 4
A8: CPU 2 Memory: | B8: 1 | C8: 1 | H8: =(C8-1)*INDEX(Memory!B$4:B$11,$B8)/12/0.9 -> 0 | K8: =INDEX(Memory!B$4:B$11,$B8)*INDEX(Memory!$A$24:$A$27,$C$8)/12 -> 0 | L8: =I8/0.87/12 -> 0 | M8: =INDEX(Memory!B$4:B$11,$B8)*INDEX(Memory!$A$24:$A$27,$C$8) -> 0
A9: Riser 1: | B9: 1 | D9: =INDEX(PCIe!B$2:B$12,$B9) -> 0 | E9: =INDEX(PCIe!C$2:C$12,$B9) -> 0 | F9: =INDEX(PCIe!D$2:D$12,$B9)+((D9*3.3)/12)/$P$3+((E9*5)/12)/$Q$3 -> 0 | K9: =INDEX(PCIe!D$2:D$12,$B9)+((D9*3.3)/12)/$P$3+((E9*5)/12)/$Q$3 -> 0 | L9: =I9/0.87/12 -> 0 | M9: =F9*12 -> 0
A10: Riser 2: | B10: 1 | D10: =INDEX(PCIe!B$14:B$20,$B10) -> 0 | E10: =INDEX(PCIe!C$14:C$20,$B10) -> 0 | F10: =INDEX(PCIe!D$14:D$19,$B10)+((D10*3.3)/12)/$P$3+((E10*5)/12)/$Q$3 -> 0 | K10: =INDEX(PCIe!D$14:D$19,$B10)+((D10*3.3)/12)/$P$3+((E10*5)/12)/$Q$3 -> 0 | L10: =I10/0.87/12 -> 0 | M10: =F10*12 -> 0
A11: M.2: | B11: 1 | C11: 1 | F11: =(C11-1)*INDEX(SSD!D$11:D$17,$B11) -> 0 | K11: =(C11-1)*INDEX(SSD!D$11:D$17,$B11) -> 0 | L11: =I11/0.87/12 -> 0 | M11: =F11*12 -> 0 | N11: * Up to 1 per riser
A12: Peripheral: | B12: 1
B13: Compute Module 1 SubTotals: | F13: =SUM(F5:F10) -> 0 | G13: =SUM(G5:G10) -> 0 | H13: =SUM(H7:H10) -> 0 | I13: =SUM(I5:I10) -> 0 | K13: =SUM(K4:K11) -> 0 | L13: =SUM(L5:L10) -> 0 | M13: =SUM(M4:M11) -> 0 | O13: CPU1 | P13: CPU2 | Q13: DIMM1 | R13: DIMM2
B14: CLST Allowance: | K14: =M14/12 ->  | L14: 0 | M14: =SUM(O14:R14) ->  | O14: =IF(B5>1,INDEX(Processors!G2:G54,$B5)*(C6-1),0) -> 0 | P14: =IF(#REF!>1,INDEX(Processors!G2:G54,#REF!)*(#REF!-1),0) ->  | Q14: =IF(C7>1,INDEX(Memory!Q4:T9,'Configure Module 1'!B7,$C7-1),0) -> 0 | R14: =IF(C8>1,INDEX(Memory!Q4:T9,'Configure Module 1'!B8,$C8-1),0) -> 0

Sheet Configure Module 4
A1: Power Budget
A2: =CONCATENATE("Compute Module 4: ",INDEX(Compute_Module!A$2:A$16,$B4)," Configuration") -> Compute Module 4: (Select Compute Node) Configuration | O2: CPU VRM Efficiency | P2: 3.3v VRM Efficiency | Q2: 5v VRM Efficiency
B3: Description | D3: +3.3V (amps) | E3: +5V (amps) | F3: +12V (amps) | G3: 12V CPU1 (amps) | H3: 12V CPU2 (amps) | I3: 5V stby (amps) | J3: Max 3.3v/5v (watts) | K3: 12V MAIN (Amps) | L3: 12V Stby (Amps) | M3: Power (Watts) | O3: =INDEX(Compute_Module!H$2:H$11,$B4) -> 1 | P3: =INDEX(Compute_Module!I$2:I$11,$B4) -> 1 | Q3: =INDEX(Compute_Module!J$2:J$11,$B4) -> 1
A4: Compute Node: | B4: 1 | D4: =INDEX(Compute_Module!B$2:B$16,$B4) *1 -> 0 | E4: =INDEX(Compute_Module!C$2:C$16,$B4) *1 -> 0 | F4: =INDEX(Compute_Module!D2:D14,'Configure Module 4'!B$4) -> 0 | I4: =INDEX(Compute_Module!F$2:F$16,$B4) *1 -> 0 | K4: =INDEX(Compute_Module!D2:D14,'Configure Module 4'!B$4) -> 0 | L4: =INDEX(Compute_Module!F$2:F$16,$B4) *1 -> 0 | M4: =INDEX(Compute_Module!G$2:G$16,$B4) *1 -> 0 | T4: 1
A5: SSD 1: | B5: 1 | F5: =INDEX(SSD!$D$2:$D$7,'Configure Module 4'!B$5) -> 0 | K5: =INDEX(SSD!$D$2:$D$7,'Configure Module 4'!B$5) -> 0 | L5: =I5/0.87 -> 0 | M5: =K5*12 -> 0 | N5: * Only allowed in 2U node selection | T5: 1
A6: SSD 2: | B6: 1 | F6: =INDEX(SSD!$D$2:$D$7,'Configure Module 4'!B$6) -> 0 | K6: =INDEX(SSD!$D$2:$D$7,'Configure Module 4'!B$6) -> 0 | L6: =I6/0.87 -> 0 | M6: =K6*12 -> 0 | N6: * Only allowed in 2U node selection | T6: 1
A7: CPU 1 Memory: | B7: 1 | C7: 1 | G7: =(C7-1)*INDEX(Memory!B$4:B$11,$B7)/12/0.9 -> 0 | K7: =INDEX(Memory!B$4:B$11,$B7)*INDEX(Memory!$A$24:$A$27,$C$7)/12 -> 0 | L7: =I7/0.87/12 -> 0 | M7: =INDEX(Memory!B$4:B$11,$B7)*INDEX(Memory!$A$24:$A$27,$C$7) -> 0 | T7: 4
A8: CPU 2 Memory: | B8: 1 | C8: 1 | H8: =(C8-1)*INDEX(Memory!B$4:B$11,$B8)/12/0.9 -> 0 | K8: =INDEX(Memory!B$4:B$11,$B8)*INDEX(Memory!$A$24:$A$27,$C$8)/12 -> 0 | L8: =I8/0.87/12 -> 0 | M8: =INDEX(Memory!B$4:B$11,$B8)*INDEX(Memory!$A$24:$A$27,$C$8) -> 0
A9: Riser 1: | B9: 1 | D9: =INDEX(PCIe!B$2:B$12,$B9) -> 0 | E9: =INDEX(PCIe!C$2:C$12,$B9) -> 0 | F9: =INDEX(PCIe!D$2:D$12,$B9)+((D9*3.3)/12)/$P$3+((E9*5)/12)/$Q$3 -> 0 | K9: =INDEX(PCIe!D$2:D$12,$B9)+((D9*3.3)/12)/$P$3+((E9*5)/12)/$Q$3 -> 0 | L9: =I9/0.87/12 -> 0 | M9: =F9*12 -> 0
A10: Riser 2: | B10: 1 | D10: =INDEX(PCIe!B$14:B$20,$B10) -> 0 | E10: =INDEX(PCIe!C$14:C$20,$B10) -> 0 | F10: =INDEX(PCIe!D$14:D$19,$B10)+((D10*3.3)/12)/$P$3+((E10*5)/12)/$Q$3 -> 0 | K10: =INDEX(PCIe!D$14:D$19,$B10)+((D10*3.3)/12)/$P$3+((E10*5)/12)/$Q$3 -> 0 | L10: =I10/0.87/12 -> 0 | M10: =F10*12 -> 0
A11: M.2: | B11: 1 | C11: 1 | F11: =(C11-1)*INDEX(SSD!D$11:D$17,$B11) -> 0 | K11: =(C11-1)*INDEX(SSD!D$11:D$17,$B11) -> 0 | L11: =I11/0.87/12 -> 0 | M11: =F11*12 -> 0 | N11: * Up to 1 per riser
A12: Peripheral: | B12: 1
B13: Compute Module 1 SubTotals: | F13: =SUM(F5:F10) -> 0 | G13: =SUM(G5:G10) -> 0 | H13: =SUM(H7:H10) -> 0 | I13: =SUM(I5:I10) -> 0 | K13: =SUM(K4:K11) -> 0 | L13: =SUM(L5:L10) -> 0 | M13: =SUM(M4:M11) -> 0 | O13: CPU1 | P13: CPU2 | Q13: DIMM1 | R13: DIMM2
B14: CLST Allowance: | K14: =M14/12 ->  | L14: 0 | M14: =SUM(O14:R14) ->  | O14: =IF(B5>1,INDEX(Processors!G2:G54,$B5)*(C6-1),0) -> 0 | P14: =IF(#REF!>1,INDEX(Processors!G2:G54,#REF!)*(#REF!-1),0) ->  | Q14: =IF(C7>1,INDEX(Memory!Q4:T9,'Configure Module 1'!B7,$C7-1),0) -> 0 | R14: =IF(C8>1,INDEX(Memory!Q4:T9,'Configure Module 1'!B8,$C8-1),0) -> 0

Sheet Compute_Module (hidden)
A1: Compute Node | B1: 3.3 | C1: 5 | D1: 12BB | E1: -12 | F1: 12VSB | G1: Watts | H1: CPU VRM% | I1: 5v VRM% | J1: 3v VRM% | K1: MAX DIMM/socket | N1: * 5VStby only for ATX PSUs
A2: (Select Compute Node) | H2: 1 | I2: 1 | J2: 1
A3: S9256WK1HLC | D3: 76.7 | G3: =B3*3.3+C3*5+D3*12+E3*12+F3*5 -> 920.4 | H3: 0.93 | I3: 0.85 | J3: 0.85 | K3: 24
A4: S9248WK1HLC | D4: 67.6 | G4: =B4*3.3+C4*5+D4*12+E4*12+F4*5 -> 811.2 | H4: 0.93 | I4: 0.85 | J4: 0.85 | K4: 24
A5: S9232WK1HLC | D5: 49.2 | G5: 590.4 | H5: 0.93 | I5: 0.85 | J5: 0.85 | K5: 24
A6: S9232WK1HAC | D6: 49.2 | G6: =B6*3.3+C6*5+D6*12+E6*12+F6*5 -> 590.4 | H6: 0.93 | I6: 0.85 | J6: 0.85 | K6: 24
A7: S9248WK2HLC | D7: 67.6 | G7: 811.2 | H7: 0.93 | I7: 0.85 | J7: 0.85 | K7: 24
A8: S9232WK2HLC | D8: 49.2 | G8: 590.4 | H8: 0.93 | I8: 0.85 | J8: 0.85 | K8: 24
A9: S9248WK2HAC | D9: 67.6 | G9: =B9*3.3+C9*5+D9*12+E9*12+F9*5 -> 811.2 | H9: 0.93 | I9: 0.85 | J9: 0.85 | K9: 24
A10: S9232WK2HAC | D10: 49.2 | G10: 590.4 | H10: 0.93 | I10: 0.85 | J10: 0.85 | K10: 24
A11: User Definable | G11: 0 | K11: 24 | L11: <-- Define Custom Numbers Here
A12: User Definable | G12: 0 | K12: 24 | L12: <-- Define Custom Numbers Here
A13: User Definable | G13: 0 | K13: 24 | L13: <-- Define Custom Numbers Here
A14: User Definable | G14: 0 | K14: 24 | L14: <-- Define Custom Numbers Here

Sheet Chassis_Definition (hidden)
A1: Chassis | B1: PS limits | H1: Max W | I1: Total | J1: 80mm Fans | K1: 60mm fans | L1: TOTAL | M1: PS Eff%
A2: Selection | B2: Form factor | C2: 5V | D2: 12V 240V AC | E2: 12V 115V AC | F2: 12VStby | G2: 5VSB | H2: 3.3v/5v | I2: Watts | J2: 12V | K2: 12V | M2: 240v | N2: 110v
A3: (Select Chassis) | D3: 0 | E3: 0 | F3: 0 | J3: 0 | M3: 1 | N3: 1
A4: FC2HLC21W3 (Liquid Cooled / 2100W (x3) PSUs) | B4: 2U | D4: 175 | E4: 84 | F4: 3.5 | I4: =(D4*12) -> 2100 | J4: 0 | K4: 14.92 | L4: =SUM(J4:K4) -> 14.92 | M4: 0.94
A5: FC2HAC16W3 (Air Cooled / 1600W (x3) PSUs) | B5: 2U | D5: 133 | E5: 84 | F5: 3.5 | I5: =(D5*12) -> 1596 | J5: 13.78 | K5: 14.92 | L5: =SUM(J5:K5) -> 28.7 | M5: 0.96
A6: User Definable | O6: <-- Define Custom Numbers Here
A7: User Definable | O7: <-- Define Custom Numbers Here
A8: User Definable | O8: <-- Define Custom Numbers Here
E11: low line value
A12: Note: PS Eff is estimate @ typ voltage & 35% to 90% loading based on PS measurement data.

Sheet Processors (hidden)
A1: Processor Types | B1: TDP (W) | C1: HS Fan (A) | D1: Source | G1: CLST Saving
A2: (Select Processor)
A3: Intel(R) Xeon(R) Platinum 9222 CPU (250W) | B3: 250 | F3: 45 | G3: 87
A4: Intel(R) Xeon(R) Platinum 9242 CPU (350W) | B4: 350 | F4: 40 | G4: =(B4-F4)*0.8 -> 248
A5: Intel(R) Xeon(R) Platinum 9282 CPU (400W) | B5: 400 | F5: 40 | G5: 68
F6: 40 | G6: 87
F7: 40 | G7: 75
F8: 40 | G8: 75
F9: 35 | G9: 50
F10: 35 | G10: 70
F11: 35 | G11: 50
F12: 40 | G12: 68
F13: 35 | G13: 50
F14: 35 | G14: 49
F15: 35 | G15: 44
F16: 30 | G16: 40
F17: 30 | G17: 51
F18: 30 | G18: =(B18-F18)*0.8 -> -24
F19: 30 | G19: 57
F20: 30 | G20: 49
F21: 25 | G21: 57
F22: 25 | G22: 90
G23: 73
G24: 65
G25: 70
G26: 81
G27: 65
G28: 84
G29: 81
G30: 87
G31: 65
G32: 50
G33: 61
G34: 55
G35: 52
G36: 42
G37: 55
G38: 47
G39: 52
G40: 46
G41: 47
G42: 50
G43: 54
G44: 43
G45: 50
G46: 54
G47: 49
A61: 0
A62: 1

Sheet Memory
B1: Watts of +12V
B2: # of DIMMS | M2: Hi Stress DIMM P | O2: Min Throtted P | Q2: CLST Saving
A3: Memory | B3: 1 | C3: 8 | D3: 16 | E3: 24 | M3: 1DPC | N3: 2DPC | O3: 1DPC | P3: 2DPC | Q3: 1 | R3: 2 | S3: 4 | T3: 8
A4: (Select Memory)
A5: 8GB DDR4 RDIMM (8Gb, 1Rx8) | B5: 4.08 | C5: =B5*C$3 -> 32.64 | D5: =B5*D$3 -> 65.28 | E5: =B5*E$3 -> 97.92 | M5: 3 | N5: 2.3 | O5: 2 | P5: 1.6 | Q5: =B5-O5 -> 2.08 | R5: =(M5-O5)*2 -> 2 | S5: =(M5-O5)*4 -> 4 | T5: =(N5-P5)*8 -> 5.6
A6: 16GB DDR4 RDIMM (16Gb 1Rx16) | B6: 5.69 | C6: 45.52 | D6: 91.04 | E6: 136.56 | M6: 4 | N6: 3 | O6: 2.2 | P6: 2 | Q6: =B6-O6 -> 3.49 | R6: =(M6-O6)*2 -> 3.6 | S6: =(M6-O6)*4 -> 7.2 | T6: =(N6-P6)*8 -> 8
A7: 16GB DDR4 RDIMM (16Gb, 2Rx8) | B7: 4.4 | C7: 35.2 | D7: 70.4 | E7: 105.6 | M7: 3 | N7: 2.3 | O7: 2 | P7: 1.6 | Q7: =B7-O7 -> 2.4 | R7: =(M7-O7)*2 -> 2 | S7: =(M7-O7)*4 -> 4 | T7: =(N7-P7)*8 -> 5.6
A8: 32GB DDR4 RDIMM (32Gb, 2Rx8) | B8: 7.35 | C8: 58.8 | D8: 117.6 | E8: 176.4 | M8: 3.6 | N8: 2.7 | O8: 2.8 | P8: 2 | Q8: =B8-O8 -> 4.55 | R8: =(M8-O8)*2 -> 1.6 | S8: =(M8-O8)*4 -> 3.2 | T8: =(N8-P8)*8 -> 5.6
A9: 64GB DDR4 LRDIMM (64Gb, 4Rx4) | B9: 12.51 | C9: 100.08 | D9: 200.16 | E9: 300.24 | M9: 4 | N9: 3 | O9: 2.2 | P9: 2 | Q9: =B9-O9 -> 10.31 | R9: =(M9-O9)*2 -> 3.6 | S9: =(M9-O9)*4 -> 7.2 | T9: =(N9-P9)*8 -> 8
A10: 128GB DDR4 LRDIMM (128Gb, 4Rx4) | B10: 12.11 | C10: 96.88 | D10: 193.76 | E10: 290.64 | K10: <-- Define Custom Numbers Here
K11: <-- Define Custom Numbers Here
K12: <-- Define Custom Numbers Here
K13: <-- Define Custom Numbers Here
K14: <-- Define Custom Numbers Here
K15: <-- Define Custom Numbers Here
K16: <-- Define Custom Numbers Here
K17: <-- Define Custom Numbers Here
N19: Idd Burst read | O19: Active Stb | P19: VDD nom | Q19: VPP nom
N20: Amps | O20: Amps | P20: Volts | Q20: Volts
A21: Note: | C21: 8 | D21: 12 | E21: 16 | M21: =(P21*N21)+(Q21*O21) -> 1.8711 | N21: 1.503 | O21: 0.027 | P21: 1.2 | Q21: 2.5
A22: DIMM power will vary depending on the # of DIMMs & the actual strees/bandwidth used. | M22: =(P22*N22)+(Q22*O22) -> 3.051 | N22: 2.43 | O22: 0.054 | P22: 1.2 | Q22: 2.5
M23: =(P23*N23)+(Q23*O23) -> 2.2086 | N23: 1.728 | O23: 0.054 | P23: 1.2 | Q23: 2.5
A24: 0 | M24: =(P24*N24)+(Q24*O24) -> 3.8772 | N24: 3.006 | O24: 0.108 | P24: 1.2 | Q24: 2.5
A25: 4 | M25: =(P25*N25)+(Q25*O25) -> 5.076 | N25: 3.78 | O25: 0.216 | P25: 1.2 | Q25: 2.5
A26: 8
A27: 12
E29: =B9*12 -> 150.12

Sheet PCIe
A1: PCIe slot 1 Add in Cards | B1: Amps of +3.3V | C1: Amps of +5V | D1: Amps of +12VBB | E1: Amps of -12V | F1: Watts
A2: Slot Empty
A3: PCIe 5W | D3: 0.44 | F3: =B3*3.3+C3*5+D3*12+E3*12 -> 5.28 | H3: Specs needed to get the power consumption
A4: PCIe12W | D4: 0.83 | F4: 9.96
A5: PCIe 15W | D5: 1.25 | F5: 15
A6: PCIe 20W | D6: 1.85
A7: PCIe SSD 25W | D7: 2.083 | F7: 24.996 | G7: <-- Define Custom Card Here
A8: User Definable | F8: 0 | G8: <-- Define Custom Card Here
A9: User Definable | F9: 0 | G9: <-- Define Custom Card Here
A10: User Definable | F10: 0 | G10: <-- Define Custom Card Here
A11: User Definable | F11: 0 | G11: <-- Define Custom Card Here
A12: User Definable | F12: 0 | G12: <-- Define Custom Card Here
A13: PCIe slot 2 Add in Cards | B13: Amps of +3.3V | C13: Amps of +5V | D13: Amps of +12VBB | E13: Amps of -12V | F13: Watts
A14: Slot Empty
A15: PCIe 5W | D15: 0.44 | F15: =B15*3.3+C15*5+D15*12+E15*12 -> 5.28
A16: PCIe 12W | D16: 0.83 | F16: 9.96
A17: PCIe 15W | D17: 1.25 | F17: 15
A18: PCIe 20W | D18: 1.85 | F18: 22.2
A19: PCIe SSD 25W | D19: 2.083 | F19: 24.996 | G19: <-- Define Custom Card Here
A20: User Definable | F20: 0 | G20: <-- Define Custom Card Here
A21: User Definable | F21: 0 | G21: <-- Define Custom Card Here
A22: User Definable | F22: 0 | G22: <-- Define Custom Card Here
A23: User Definable | F23: 0 | G23: <-- Define Custom Card Here
A24: User Definable | F24: 0 | G24: <-- Define Custom Card Here

Sheet SSD
A1: PCIe SSD | B1: Amps of +3.3V | C1: Amps of +5V | D1: Amps of +12V | E1: Watts
A2: Empty | E2: =C2*5+D2*12 -> 0
A3: Intel® SSD DC P4510/4610 Series 2.5" FF, 2.0TB (25W) | D3: 2.08 | E3: 24.96 | G3: Review with Martin series available for WKP and specs
A4: Intel® SSD DC P4800X Series 2.5" FF, 2.0TB (18W) | D4: 0.67 | E4: =C4*5+D4*12 -> 8.04
A5: User Definable | E5: 0 | F5: <-- Define Custom Device Here
A6: User Definable | E6: 0 | F6: <-- Define Custom Device Here
A7: User Definable | E7: 0 | F7: <-- Define Custom Device Here
A10: M.2 SSD | B10: Amps of +3.3V | C10: Amps of +5V | D10: Amps of +12V | E10: Watts
A11: Empty | E11: =C11*5+D11*12 -> 0
A12: PCIe 4511/P4101 Series M.2 Typical Power (5W) | D12: 0.458 | E12: 5.496
A13: SATA 5100 M.2 Typical Power (5W) | D13: 0.2 | E13: 2.4
A14: SATA D3-S4510 M.2 Typical Power (<5W)
A15: User Definable | E15: 0 | F15: <-- Define Custom Device Here
A16: User Definable | E16: 0 | F16: <-- Define Custom Device Here
A17: User Definable | E17: 0 | F17: <-- Define Custom Device Here
H18: 0
H19: 1
H20: 2
A22: 0
A23: 1
A24: 2

Sheet Peripherals (hidden)
A1: Misc Peripherals | B1: Amps of +3.3V | C1: Amps of +5V | D1: Amps of +12V | E1: Amps of -12V | F1: Amps of 3vsb | G1: Watts
A2: Slim-Line Devices
A3: Empty
A4: RMM4LITE2 | G4: =B4*3.3+C4*5+D4*12+E4*12+F4*5 -> 0 | H4: <-- Define Custom Peripherals Here | J4: * Need VROC and RMM spec
A5: VROC | G5: =B5*3.3+C5*5+D5*12+E5*12+F5*5 -> 0 | H5: <-- Define Custom Peripherals Here
A6: User Definable | G6: =B6*3.3+C6*5+D6*12+E6*12+F6*5 -> 0 | H6: <-- Define Custom Peripherals Here
A7: User Definable | H7: <-- Define Custom Peripherals Here
A8: User Definable | H8: <-- Define Custom Peripherals Here
A9: User Definable | G9: =B9*3.3+C9*5+D9*12+E9*12+F9*5 -> 0 | H9: <-- Define Custom Peripherals Here
A10: User Definable | G10: =B10*3.3+C10*5+D10*12+E10*12+F10*5 -> 0 | H10: <-- Define Custom Peripherals Here
A11: Other Peripheral Devices
A12: User Definable | G12: =B12*3.3+C12*5+D12*12+E12*12+F12*5 -> 0 | H12: <-- Define Custom Peripherals Here
A13: User Definable | G13: 0 | H13: <-- Define Custom Peripherals Here
A14: User Definable | G14: 0 | H14: <-- Define Custom Peripherals Here
A15: User Definable | G15: 0 | H15: <-- Define Custom Peripherals Here
A16: User Definable | G16: 0 | H16: <-- Define Custom Peripherals Here

Sheet Taylor Pass_Normal (hidden)
A1: Notes: 1. 27°C is limited to elevations of 900m or less 2. Quad Port IO Modules cannot be installed simultaneously with PCI Cards. 3. Processor - may have significent performance impact. 4. Processors - There may be some performance impact during fan failures. 5. For A3/A4 individual PS selection: 1) For dual power supply configuration, power budget must fit within single power supply rated load and be installed in dual configuration 2) For single power supply configuration, power budget must be sized with 30% margin to single power supply rated load. 6. When identifying memory in the table, only Rank and Width are required. Capacity is not required. 7. Processor limited to 90W to support 1.5W AOC cable. Processor limited to 90W and memory limited to DRx4 to support 2W AOC cable. 8. Supported with one HDD per node configuration. | C1: Base System SKUs: H2216TLP | G1: Base System SKUs: H2312TLP | L1: Base System SKUs: H2224TLP
A2: ASHRAE (See note 1) | B2: Classifications | C2: A2 | D2: 27C | E2: A3 | F2: A4 | G2: 27C | H2: A2 | I2: A2 | J2: A3 | K2: A4 | L2: 27C | M2: A2 | N2: A2 | O2: A3 | P2: A4
B3: Max Ambient | C3: 35C | D3: 27C | E3: 40C | F3: 45C | G3: 27C | H3: 35C | I3: 35C | J3: 40C | K3: 45C | L3: 27C | M3: 35C | N3: 35C | O3: 40C | P3: 45C | Q3: <-- See note 1
A4: PS (See note 5) | B4: Power Supplies | C4: See Note 5 | G4: See Note 5 | L4: See Note 5
A5: EP Processors (See notes 3 and 4) | B5: EP, 135w, 12C (Intel® Xeon® processor E5-2690 V3) | C5: ● | D5: ● | E5: ● | G5: ● | I5: ● | L5: ● | N5: ●
B6: EP, 120w, 12C (Intel® Xeon® processor E5-2680 V3, E5-2670 V3) | C6: ● | D6: ● | E6: ● | G6: ● | I6: ● | L6: ● | N6: ●
B7: EP, 105w, 10C (Intel® Xeon® processor E5-2660 V3, E5-2650 V3) | C7: ● | D7: ● | E7: ● | G7: ● | I7: ● | L7: ● | N7: ●
B8: EP, 90w, 8C (Intel® Xeon® processor E5-2640 V3) | C8: ● | D8: ● | E8: ● | F8: ● | G8: ● | H8: ● | I8: ● | J8: 3,4 | L8: ● | M8: ● | N8: ● | O8: 3,4
B9: EP, 85w,8C,6C (Intel® Xeon® processor E5-2630 V3, E5-2620 V3, E5-2609 V3, E5-2603 V3) | C9: ● | D9: ● | E9: ● | F9: ● | G9: ● | H9: ● | I9: ● | J9: 3,4 | K9: 3 | L9: ● | M9: ● | N9: ● | O9: 3,4 | P9: 3
B10: EP, 135w, 8C,6C,4C (Intel® Xeon® processor E5-2667 V3, E5-2643 V3, E5-2637 V3) | C10: 3,4 | D10: ● | G10: 3,4 | L10: 3,4
B11: EP, 105w, 4C (Intel® Xeon® processor E5-2623 V3) | C11: ● | D11: ● | E11: ● | G11: ● | I11: ● | L11: ● | N11: ●
B12: EP, 65w, 12C (Intel® Xeon® processor E5-2650L V3) | C12: ● | D12: ● | E12: ● | F12: ● | G12: ● | H12: ● | I12: ● | J12: 3,4 | K12: 3 | L12: ● | M12: ● | N12: ● | O12: 3,4 | P12: 3
B13: EP, 55w, 8C (Intel® Xeon® processor E5-2630L V3) | C13: ● | D13: ● | E13: ● | F13: ● | G13: ● | H13: ● | I13: ● | J13: 3,4 | K13: 3 | L13: ● | M13: ● | N13: ● | O13: 3,4 | P13: 3
B14: EP, 145w, 14C,18C (Intel® Xeon® processor E5-2697 V3, E5-2699 V3) | C14: 3,4 | D14: ● | G14: 3,4 | L14: 3,4
B15: EP, 135w, 16C (Intel® Xeon® processor E5-2698 V3) | C15: 3,4 | D15: ● | G15: 3,4 | L15: 3,4
B16: EP, 120w, 14C (Intel® Xeon® processor E5-2695 V3, E5-2683 V3) | C16: 3,4 | D16: ● | G16: 3,4 | L16: 3,4
A17: Memory Type (See note 6) | B17: RDIMM-2Rx8,1Rx4 | C17: ● | D17: ● | E17: ● | F17: ● | G17: ● | H17: ● | I17: ● | J17: ● | K17: ● | L17: ● | M17: ● | N17: ● | O17: ● | P17: ●
B18: RDIMM-DRx4 | C18: ● | D18: ● | E18: ● | F18: ● | G18: ● | H18: ● | I18: ● | J18: ● | K18: ● | L18: ● | M18: ● | N18: ● | O18: ● | P18: ●
B19: LRDIMM-QRx4 DDP | C19: ● | D19: ● | E19: ● | F19: ● | G19: ● | H19: ● | I19: ● | J19: ● | L19: ● | M19: ● | N19: ● | O19: ●
A20: Add-in Cards (See note 2) | B20: PCI Cards with 100LFM/55C spec | C20: ● | D20: ● | E20: ● | F20: ● | G20: ● | H20: ● | I20: ● | J20: ● | K20: ● | L20: ● | M20: ● | N20: ● | O20: ● | P20: ●
B21: PCI Cards With 200LFM/55C spec | C21: ● | D21: ● | G21: 8 | H21: ● | I21: 8 | L21: 8 | M21: ● | N21: 8 | Q21: <-- See note 2
B22: PCI Cards With 300LFM/55C spec | D22: ● | H22: 8 | M22: 8 | Q22: <-- See note 2
A23: Module (See note 2) | B23: AXX10GBTWLIOM - Dual 10GBASE-T IO Module | C23: ● | D23: ● | E23: ● | F23: ● | G23: ● | H23: ● | I23: ● | J23: ● | K23: ● | L23: ● | M23: ● | N23: ● | O23: ● | P23: ●
B24: AXX10GBNIAIOM - Dual SFP+ port 10GbE IO Module | C24: ● | D24: ● | E24: ● | F24: ● | G24: ● | H24: ● | I24: ● | J24: ● | K24: ● | L24: ● | M24: ● | N24: ● | O24: ● | P24: ●
B25: AXX1FDRIBIOM - Single Port FDR Infiniband IO Module | C25: ● | D25: ● | E25: ● | F25: ● | G25: ● | H25: ● | I25: ● | J25: ● | K25: ● | L25: ● | M25: ● | N25: ● | O25: ● | P25: ●
B26: AXX2FDRIBIOM - Dual Port FDR Infiniband IO Module | C26: ● | D26: ● | E26: ● | F26: ● | G26: ● | H26: ● | I26: ● | J26: ● | K26: ● | L26: ● | M26: ● | N26: ● | O26: ● | P26: ●
B27: AXX4P1GBPWLIOM - Quad Port 1GbE IO Module | C27: ● | D27: ● | E27: ● | F27: ● | G27: ● | H27: ● | I27: ● | J27: ● | K27: ● | L27: ● | M27: ● | N27: ● | O27: ● | P27: ● | Q27: <-- See note 2
A28: QSFP Cables (See note 7) | B28: Passive Cable | C28: ● | D28: ● | E28: ● | F28: ● | G28: ● | H28: ● | I28: ● | J28: ● | K28: ● | L28: ● | M28: ● | N28: ● | O28: ● | P28: ●
B29: Active Optical Cable (1.5W) | C29: ● | D29: ● | G29: ● | H29: ● | I29: 7 | L29: ● | M29: ● | N29: 7
B30: Active Optical Cable (2W) | D30: ● | H30: ● | I30: 7 | M30: ● | N30: 7 | Q30: <-- See note 7

Sheet Taylor Pass_Fan Fail (hidden)
A1: Notes: 1. 27°C is limited to elevations of 900m or less 2. Quad Port IO Modules cannot be installed simultaneously with PCI Cards. 3. Processor - 135W - 4/6/8/16C, 120W-14C and 145W - 14/18C may have some performance impact. 4. Processors - There may be some performance impact during fan failures. 5. For A3/A4 individual PS selection: 1) For dual power supply configuration, power budget must fit within single power supply rated load and be installed in dual configuration, or 2) For single power supply configuration, power budget must be sized with 30% margin to single power supply rated load. 6. When identifying memory in the table, only Rank and Width are required. Capacity is not required. 7. Processor limited to 90W to support 1.5W AOC cable. Processor limited to 90W and memory limited to DRx4 to support 2W AOC cable. 8. Fan fail is not supported at A3/A4 | C1: Base System SKUs: R2216TLP | D1: Base System SKUs: R2312TLP | F1: Base System SKUs: R2224TLP
A2: ASHRAE (See note 1) | B2: Classifications | C2: A2 | D2: 27C | E2: A2 | F2: 27C | G2: A2
B3: Max Ambient | C3: 35C | D3: 27C | E3: 35C | F3: 27C | G3: 35C | H3: <-- See note 1
A4: PS (See note 5) | B4: Power Supplies | C4: See Note 5 | D4: See Note 5 | F4: See Note 5
A5: EP Processors (See notes 3 and 4) | B5: EP, 135w, 12C (Intel® Xeon® processor E5-2690 V3) | C5: 3,4 | D5: 3,4 | E5: 3,4 | F5: 3,4 | G5: 3,4
B6: EP, 120w, 12C (Intel® Xeon® processor E5-2680 V3, E5-2670 V3) | C6: 3,4 | D6: 3,4 | E6: 3,4 | F6: 3,4 | G6: 3,4
B7: EP, 105w, 10C (Intel® Xeon® processor E5-2660 V3, E5-2650 V3) | C7: 3,4 | D7: 3,4 | E7: 3,4 | F7: 3,4 | G7: 3,4
B8: EP, 90w, 8C (Intel® Xeon® processor E5-2640 V3) | C8: 3,4 | D8: 3,4 | E8: 3,4 | F8: 3,4 | G8: 3,4
B9: EP, 85w,8C,6C (Intel® Xeon® processor E5-2630 V3, E5-2620 V3, E5-2609 V3, E5-2603 V3) | C9: 3,4 | D9: 3,4 | E9: 3,4 | F9: 3,4 | G9: 3,4
B10: EP, 135w, 8C,6C,4C (Intel® Xeon® processor E5-2667 V3, E5-2643 V3, E5-2637 V3) | C10: 3,4 | D10: 3,4 | F10: 3,4
B11: EP, 105w, 4C (Intel® Xeon® processor E5-2623 V3) | C11: 3,4 | D11: 3,4 | E11: 3,4 | F11: 3,4 | G11: 3,4
B12: EP, 65w, 12C (Intel® Xeon® processor E5-2650L V3) | C12: 3,4 | D12: 3,4 | E12: 3,4 | F12: 3,4 | G12: 3,4
B13: EP, 55w, 8C (Intel® Xeon® processor E5-2630L V3) | C13: 3,4 | D13: 3,4 | E13: 3,4 | F13: 3,4 | G13: 3,4
B14: EP, 145w, 14C,18C (Intel® Xeon® processor E5-2697 V3, E5-2699 V3) | C14: 3,4 | D14: 3,4 | F14: 3,4
B15: EP, 135w, 16C (Intel® Xeon® processor E5-2698 V3) | C15: 3,4 | D15: 3,4 | F15: 3,4
B16: EP, 120w, 14C (Intel® Xeon® processor E5-2695 V3, E5-2683 V3) | C16: 3,4 | D16: 3,4 | F16: 3,4
A17: Memory Type (See note 6) | B17: RDIMM-2Rx8,1Rx4 | C17: ● | D17: ● | E17: ● | F17: ● | G17: ●
B18: RDIMM-DRx4 | C18: ● | D18: ● | E18: ● | F18: ● | G18: ●
B19: LRDIMM-QRx4 DDP | C19: ● | D19: ● | E19: ● | F19: ● | G19: ●
A20: Add-in Cards (See note 2) | B20: PCI Cards with 100LFM/55C spec | C20: ●
B21: PCI Cards with 200LFM/55C spec
B22: PCI Cards with 300LFM/55C spec | H22: <-- See note 2
A23: Module (See note 2) | B23: AXX10GBTWLIOM - Dual 10GBASE-T IO Module | C23: ● | D23: ● | E23: ● | F23: ● | G23: ●
B24: AXX10GBNIAIOM - Dual SFP+ port 10GbE IO Module | C24: ● | D24: ● | E24: ● | F24: ● | G24: ●
B25: AXX1FDRIBIOM - Single Port FDR Infiniband IO Module | C25: ● | D25: ● | E25: ● | F25: ● | G25: ●
B26: AXX2FDRIBIOM - Dual Port FDR Infiniband IO Module | C26: ● | D26: ● | E26: ● | F26: ● | G26: ●
B27: AXX4P1GBPWLIOM - Quad Port 1GbE IO Module | C27: ● | D27: ● | E27: ● | F27: ● | G27: ● | H27: <-- See note 2
A28: QSFP Cables (See note 7) | B28: Passive Cable | C28: ● | D28: ● | E28: ● | F28: ● | G28: ●
B29: Active Optical Cable (1.5W) | C29: ● | D29: ● | E29: 7 | F29: ● | G29: 7
B30: Active Optical Cable (2W) | C30: ● | D30: ● | E30: 7 | F30: ● | G30: 7 | H30: <-- See note 7

Sheet Walker Pass_Normal
A2: Thermal Config Matrix Normal operating mode "●"= Full Support without limitation; " "(Blank)=Not support; | D2: 1U LC - 4 sleds | F2: 2U LC - 2 sleds | H2: 2U AC - 2 sleds | J2: 1U AC - 4 sleds | L2: 1U/2U AC- Combined | N2: 1U/2U LC -Combined | AB2: WCP
A3: ASHRAE (See note1, 2) | C3: Max Ambient | D3: 27°C | E3: 35°C | F3: 27°C | G3: 35°C | H3: 27°C | I3: 35°C | J3: 27°C | K3: 35°C | L3: 27°C | M3: 35°C | N3: 27°C | O3: 35°C | AB3: 27°C(1) | AC3: 35°C | AD3: 40°C | AE3: 45°C
C4: Altitude | D4: 900 | E4: 900 | F4: 900 | G4: 900 | H4: 900 | I4: 900 | J4: 900 | K4: 900 | L4: 900 | M4: 900 | N4: 900 | O4: 900
A5: PSU | C5: 1600 W AC | D5: ● | E5: ● | F5: ● | G5: ● | H5: ● | I5: ● | J5: TBD | K5: TBD | L5: TBD | M5: TBD | N5: ● | O5: ●
C6: 2100 W AC | D6: ● | E6: ● | F6: ● | G6: ● | H6: ● | I6: ● | J6: TBD | K6: TBD | L6: TBD | M6: TBD | N6: ● | O6: ● | AB6: ● | AC6: ● | AD6: ● | AE6: ●
C7: 400 W | D7: ● | E7: ● | F7: ● | G7: ● | J7: TBD | K7: TBD | L7: TBD | M7: TBD | N7: ● | O7: ●
A8: CPU | C8: 350 W | D8: ● | E8: ● | F8: ● | G8: ● | H8: ● | I8: ● | J8: TBD | K8: TBD | L8: TBD | M8: TBD | N8: ● | O8: ●
C9: 250 W | D9: ● | E9: ● | F9: ● | G9: ● | H9: ● | I9: ● | J9: TBD | K9: TBD | L9: TBD | M9: TBD | N9: ● | O9: ●
A10: Memory Type | C10: 8GB RDIMM | D10: ● | E10: ● | F10: ● | G10: ● | H10: ● | I10: ● | J10: TBD | K10: TBD | L10: TBD | M10: TBD | N10: ● | O10: ● | AB10: ● | AC10: ● | AD10: ● | AE10: ●
C11: 16GB RDIMM | D11: ● | E11: ● | F11: ● | G11: ● | H11: ● | I11: ● | J11: TBD | K11: TBD | L11: TBD | M11: TBD | N11: ● | O11: ●
C12: 16GB RDIMM | D12: ● | E12: ● | F12: ● | G12: ● | H12: ● | I12: ● | J12: TBD | K12: TBD | L12: TBD | M12: TBD | N12: ● | O12: ●
C13: 16GB RDIMM | D13: ● | E13: ● | F13: ● | G13: ● | H13: ● | I13: ● | J13: TBD | K13: TBD | L13: TBD | M13: TBD | N13: ● | O13: ●
C14: 16GB RDIMM | D14: ● | E14: ● | F14: ● | G14: ● | H14: ● | I14: ● | J14: TBD | K14: TBD | L14: TBD | M14: TBD | N14: ● | O14: ●
C15: 32GB RDIMM | D15: ● | E15: ● | F15: ● | G15: ● | H15: ● | I15: ● | J15: TBD | K15: TBD | L15: TBD | M15: TBD | N15: ● | O15: ●
C16: 32GB RDIMM | D16: ● | E16: ● | F16: ● | G16: ● | H16: ● | I16: ● | J16: TBD | K16: TBD | L16: TBD | M16: TBD | N16: ● | O16: ●
C17: 64GB LDIMM | D17: ● | E17: ● | F17: ● | G17: ● | H17: ● | I17: ● | J17: TBD | K17: TBD | L17: TBD | M17: TBD | N17: ● | O17: ●
C18: 64GB LDIMM | D18: ● | E18: ● | F18: ● | G18: ● | H18: ● | I18: ● | J18: TBD | K18: TBD | L18: TBD | M18: TBD | N18: ● | O18: ● | AB18: ● | AC18: ● | AD18: ● | AE18: ●
C19: 128GB LDIMM | D19: ● | E19: ● | F19: ● | G19: ● | H19: ● | I19: ● | J19: TBD | K19: TBD | L19: TBD | M19: TBD | N19: ● | O19: ● | AB19: ● | AC19: ● | AD19: ● | AE19: ●
A20: Add-in Cards - Riser #1 and #2 | C20: Up to 25 W (we don’t have a AIC with more power than 19 W) | D20: ● | E20: ● | F20: ● | G20: ● | H20: ● | I20: ● | N20: ● | O20: ● | AB20: ● | AC20: ● | AD20: ● | AE20: ●
C21: Up to 20 W | D21: ● | E21: ● | F21: ● | G21: ● | H21: ● | I21: ● | J21: TBD | K21: TBD | L21: TBD | M21: TBD | N21: ● | O21: ●
A22: U.2 - Riser #1 and #2 | C22: Up to 25 W | D22: ● | E22: ● | F22: ● | G22: ● | H22: ● | I22: ● | J22: TBD | K22: TBD | L22: TBD | M22: TBD | N22: ● | O22: ● | AB22: ● | AC22: ● | AD22: ● | AE22: ●
A23: M.2- Riser #1 and #2 | C23: Up to 6 W | D23: ● | E23: ● | F23: ● | G23: ● | H23: ● | I23: ● | J23: TBD | K23: TBD | L23: TBD | M23: TBD | N23: ● | O23: ●
A24: Lewisburg | D24: ● | F24: ● | H24: ● | N24: ●
D25: ● | F25: ● | H25: ●
D26: ● | F26: ● | H26: ●
C27: LBG L (20W) | D27: ● | F27: ● | H27: ●
C28: LBG E (21W) | D28: ● | F28: ● | H28: ●
C29: LBG M (25W) | D29: 11 | F29: 11 | H29: 11
C30: LBG M (29W) | D30: 11 | F30: 11 | H30: 11
H31: ●
A32: Copperville | C32: 9W | D32: ● | F32: ● | H32: ●

Sheet Walker Pass_Fan Fail
A2: Thermal Config Matrix Normal operating mode "●"= Full Support without limitation; " "(Blank)=Not support; | D2: 1U LC - 4 sleds | F2: 2U LC - 2 sleds | H2: 2U AC - 2 sleds | J2: 1U AC - 4 sleds | L2: 1U/2U AC- Combined | N2: 1U/2U LC -Combined | AB2: WCP
A3: ASHRAE (See note1, 2) | C3: Max Ambient | D3: 27°C | E3: 35°C | F3: 27°C | G3: 35°C | H3: 27°C | I3: 35°C | J3: 27°C | K3: 35°C | L3: 27°C | M3: 35°C | N3: 27°C | O3: 35°C | AB3: 27°C(1) | AC3: 35°C | AD3: 40°C | AE3: 45°C
C4: Altitude | D4: 900 | E4: 900 | F4: 900 | G4: 900 | H4: 900 | I4: 900 | J4: 900 | K4: 900 | L4: 900 | M4: 900 | N4: 900 | O4: 900
A5: PSU | C5: 1600 W AC | D5: ● | E5: ● | F5: ● | G5: ● | H5: ● | I5: ● | J5: TBD | K5: TBD | L5: TBD | M5: TBD | N5: ● | O5: ●
C6: 2100 W AC | D6: ● | E6: ● | F6: ● | G6: ● | H6: ● | I6: ● | J6: TBD | K6: TBD | L6: TBD | M6: TBD | N6: ● | O6: ● | AB6: ● | AC6: ● | AD6: ● | AE6: ●
C7: 400 W | D7: 4 | E7: 4 | F7: 4 | G7: 4 | J7: TBD | K7: TBD | L7: TBD | M7: TBD | N7: 4 | O7: 4
A8: CPU( See note 5) | C8: 350 W | D8: 4 | E8: 4 | F8: 4 | G8: 4 | H8: 4 | I8: 4 | J8: TBD | K8: TBD | L8: TBD | M8: TBD | N8: 4 | O8: 4
C9: 250 W | D9: 4 | E9: 4 | F9: 4 | G9: 4 | H9: 4 | I9: 4 | J9: TBD | K9: TBD | L9: TBD | M9: TBD | N9: 4 | O9: 4
A10: Memory Type | C10: 8GB RDIMM | D10: ● | E10: ● | F10: ● | G10: ● | H10: ● | I10: ● | J10: TBD | K10: TBD | L10: TBD | M10: TBD | N10: ● | O10: ● | AB10: ● | AC10: ● | AD10: ● | AE10: ●
C11: 16GB RDIMM | D11: ● | E11: ● | F11: ● | G11: ● | H11: ● | I11: ● | J11: TBD | K11: TBD | L11: TBD | M11: TBD | N11: ● | O11: ●
C12: 16GB RDIMM | D12: ● | E12: ● | F12: ● | G12: ● | H12: ● | I12: ● | J12: TBD | K12: TBD | L12: TBD | M12: TBD | N12: ● | O12: ●
C13: 16GB RDIMM | D13: ● | E13: ● | F13: ● | G13: ● | H13: ● | I13: ● | J13: TBD | K13: TBD | L13: TBD | M13: TBD | N13: ● | O13: ●
C14: 16GB RDIMM | D14: ● | E14: ● | F14: ● | G14: ● | H14: ● | I14: ● | J14: TBD | K14: TBD | L14: TBD | M14: TBD | N14: ● | O14: ●
C15: 32GB RDIMM | D15: ● | E15: ● | F15: ● | G15: ● | H15: ● | I15: ● | J15: TBD | K15: TBD | L15: TBD | M15: TBD | N15: ● | O15: ●
C16: 32GB RDIMM | D16: ● | E16: ● | F16: ● | G16: ● | H16: ● | I16: ● | J16: TBD | K16: TBD | L16: TBD | M16: TBD | N16: ● | O16: ●
C17: 64GB LDIMM | D17: ● | E17: ● | F17: ● | G17: ● | H17: ● | I17: ● | J17: TBD | K17: TBD | L17: TBD | M17: TBD | N17: ● | O17: ●
C18: 64GB LDIMM | D18: ● | E18: ● | F18: ● | G18: ● | H18: ● | I18: ● | J18: TBD | K18: TBD | L18: TBD | M18: TBD | N18: ● | O18: ● | AB18: ● | AC18: ● | AD18: ● | AE18: ●
C19: 128GB LDIMM | D19: ● | E19: ● | F19: ● | G19: ● | H19: ● | I19: ● | J19: TBD | K19: TBD | L19: TBD | M19: TBD | N19: ● | O19: ● | AB19: ● | AC19: ● | AD19: ● | AE19: ●
A20: Add-in Cards - Riser #1 and #2 | C20: Up to 25 W (we don’t have a AIC with more power than 19 W) | D20: ● | E20: ● | F20: ● | G20: ● | H20: ● | I20: ● | N20: ● | O20: ● | AB20: ● | AC20: ● | AD20: ● | AE20: ●
C21: Up to 20 W | D21: ● | E21: ● | F21: ● | G21: ● | H21: ● | I21: ● | J21: TBD | K21: TBD | L21: TBD | M21: TBD | N21: ● | O21: ●
A22: U.2 - Riser #1 and #2 | C22: Up to 25 W | D22: ● | E22: ● | F22: ● | G22: ● | H22: ● | I22: ● | J22: TBD | K22: TBD | L22: TBD | M22: TBD | N22: ● | O22: ● | AB22: ● | AC22: ● | AD22: ● | AE22: ●
A23: M.2- Riser #1 and #2 | C23: Up to 6 W | D23: ● | E23: ● | F23: ● | G23: ● | H23: ● | I23: ● | J23: TBD | K23: TBD | L23: TBD | M23: TBD | N23: ● | O23: ●
A24: Lewisburg | D24: ● | F24: ● | H24: ● | N24: ●
D25: ● | F25: ● | H25: ●
D26: ● | F26: ● | H26: ●
C27: LBG L (20W) | D27: ● | F27: ● | H27: ●
C28: LBG E (21W) | D28: ● | F28: ● | H28: ●
C29: LBG M (25W) | D29: 11 | F29: 11 | H29: 11
C30: LBG M (29W) | D30: 11 | F30: 11 | H30: 11
H31: ●
A32: Copperville | C32: 9W | D32: ● | F32: ● | H32: ●

Sheet Revision (hidden)
A1: =MAX(A4:A24) -> 2019-10-29 | B1: =MAX(B4:B24) -> 1 | D1: <=== Linked to Summary Tab.
A3: Date | B3: Rev | C3: Notes | D3: Init
A4: 2019-10-29 | B4: 1 | C4: Initial Release.

Sheet Macro1 (hidden)
